fUST/lending_fUST_20240408
["ID","MTS","AMOUNT","RATE_DAILY","PERIOD"]
[321863296,1712572249117,-845.22,0.00061095,120]
[321863299,1712572249127,-3100.92,0.00061095,120]
[321863300,1712572249137,-500.0,0.00061095,120]
[321863302,1712572249147,-1188.6,0.00061095,120]
[321863305,1712572249156,-3223.58,0.00061095,120]
[321863307,1712572249166,-1836.27,0.00061095,120]
[321863309,1712572249175,-2425.99,0.00061095,120]
[321863310,1712572249184,-500.0,0.00061095,120]
[321863312,1712572249194,-190.380822,0.00061095,120]
[321863314,1712572249203,-190.380822,0.00061095,120]
[321863316,1712572249213,-151.0,0.00061095,120]
[321863318,1712572249223,-500.0,0.00061095,120]
[321863320,1712572249233,-500.0,0.00061095,120]
[321863322,1712572249242,-151.0,0.00061095,120]
[321863325,1712572249251,-500.0,0.00061095,120]
[321863326,1712572249261,-500.0,0.00061095,120]
[321863328,1712572249270,-449.166071,0.00061095,120]
[321863331,1712572249280,-449.166071,0.00061095,120]
[321863333,1712572249290,-500.0,0.00061095,120]
[321863335,1712572249298,-263.59287505,0.00061095,120]
[321863915,1712573230127,-469.89408815,0.00027395,2]
[321863916,1712573230150,-276.96705132,0.00027396,2]
[321863917,1712573230170,-237.69273706,0.00027396,2]
[321863921,1712573251094,-3427.05345199,0.00027396,2]
[321863922,1712573251115,-158.193726,0.00027397,2]
[321863923,1712573251139,-164.335808,0.00027397,2]
[321863924,1712573251159,-464.50545485,0.00034,4]
[321863925,1712573251180,-422.44192882,0.00035123,4]
[321863926,1712573251200,-160.1460235,0.00035125,2]
[321863927,1712573251220,-158.193726,0.00035225,2]
[321863928,1712573251241,-160.14602343,0.00037626,2]
[321863929,1712573251265,-663.09429356,0.00039297,2]
[321863930,1712573251284,-200.00288719,0.00040018,30]
[321863931,1712573251305,-160.14602343,0.00040128,2]
[321863932,1712573251327,-200.00288719,0.00040827,30]
[321863933,1712573251347,-222.60395627,0.00040928,4]
[321863934,1712573251443,-200.00288719,0.0004117,30]
[321863935,1712573251464,-200.00288719,0.00041534,30]
[321863936,1712573251484,-200.00288719,0.00041674,30]
[321863937,1712573251503,-200.00288719,0.00041875,30]
[321863938,1712573251523,-200.00288719,0.00042181,30]
[321863939,1712573251545,-160.14602343,0.00042629,2]
[321863940,1712573251565,-200.00288719,0.00042825,30]
[321863941,1712573251584,-158.193726,0.00043053,2]
[321863942,1712573251604,-235.021097,0.00043404,30]
[321863943,1712573251624,-200.00288719,0.00043841,30]
[321863944,1712573251645,-799.780751,0.00043911,2]
[321863945,1712573251664,-200.00288719,0.00044157,30]
[321863946,1712573251684,-663.09429356,0.00044297,2]
[321863947,1712573251704,-160.14602343,0.0004513,2]
[321863948,1712573251725,-164.335808,0.00045662,2]
[321863949,1712573251745,-200.00288719,0.00046268,30]
[321863950,1712573251764,-155.0,0.000469,60]
[321863951,1712573251783,-160.0,0.00047,90]
[321863952,1712573251801,-166.666666,0.00047193,2]
[321863953,1712573251822,-160.14602343,0.00047631,2]
[321863954,1712573251841,-200.00288719,0.00047751,30]
[321863955,1712573251861,-319.564296,0.00047777,2]
[321863956,1712573251880,-183.544903,0.00048334,2]
[321863957,1712573251899,-200.00288719,0.00048426,30]
[321863958,1712573251919,-166.666666,0.0004848,2]
[321863959,1712573251940,-160.0,0.00048904,90]
[321863960,1712573251959,-200.00288719,0.00049672,30]
[321863961,1712573251981,-150.8642222,0.00049724,2]
[321863962,1712573252001,-153.0,0.00049766,2]
[321863963,1712573252021,-166.666666,0.00049766,2]
[321863964,1712573252043,-330.61774415,0.00049771,4]
[321863965,1712573252063,-469.36295751,0.00049771,4]
[321863966,1712573252084,-282.48776653,0.00049772,4]
[321863967,1712573252105,-294.78166024,0.00049772,4]
[321864000,1712573362295,-153.51768998,0.00044685,30]
[321864001,1712573362315,-1087.62819146,0.000469,30]
[321864002,1712573362335,-153.51768998,0.00047169,30]
[321864003,1712573362356,-836.31989577,0.00049772,4]
[321864004,1712573362376,-686.62317156,0.00049772,4]
[321864005,1712573362396,-537.45185021,0.00049772,4]
[321864006,1712573362418,-207.05974647,0.00049772,4]
[321864007,1712573362438,-2119.45114629,0.00049772,4]
[321864008,1712573362458,-158.36847561,0.00049772,4]
[321864009,1712573362480,-1929.1859808,0.00049772,4]
[321864010,1712573362503,-688.56799994,0.00049772,4]
[321864011,1712573362525,-154.9690062,0.00049772,4]
[321864012,1712573362546,-3456.88796952,0.00049772,4]
[321864013,1712573362567,-154.9690062,0.00049772,4]
[321864014,1712573362588,-464.50545485,0.00049772,4]
[321864015,1712573362607,-3660.39605817,0.00049772,4]
[321864016,1712573362632,-3732.73797295,0.00049773,4]
[321864017,1712573362654,-24900.0,0.00049774,2]
[321864018,1712573362674,-156.93341438,0.000499,2]
[321864019,1712573362695,-362.05378445,0.000499,14]
[321864020,1712573362714,-565.44343863,0.0005,7]
[321864021,1712573362736,-160.14602343,0.00050133,2]
[321864022,1712573362756,-200.00288719,0.00050235,60]
[321864023,1712573362775,-200.00288719,0.00050467,60]
[321864024,1712573362795,-200.00288719,0.00050557,60]
[321864025,1712573362815,-200.00288719,0.00050808,60]
[321864026,1712573362835,-158.193726,0.00050881,2]
[321864027,1712573362853,-200.00288719,0.00050971,60]
[321864028,1712573362873,-166.666666,0.00051053,2]
[321864029,1712573362893,-200.00288719,0.00051207,60]
[321864030,1712573362913,-200.00288719,0.00051659,60]
[321864031,1712573362938,-166.666666,0.0005234,2]
[321864032,1712573362958,-156.93341435,0.00052468,2]
[321864033,1712573362977,-160.14602343,0.00052634,2]
[321864034,1712573362996,-200.00288719,0.00053004,60]
[321864035,1712573363015,-166.666666,0.00053626,2]
[321864036,1712573363034,-200.00288719,0.00054177,60]
[321864037,1712573363055,-156.93341435,0.00055037,2]
[321864038,1712573363076,-160.14602343,0.00055135,2]
[321864039,1712573363096,-200.00288719,0.0005559,120]
[321864040,1712573363115,-200.00288719,0.00056801,120]
[321864041,1712573363135,-166.574209,0.00056944,2]
[321864042,1712573363158,-200.00288719,0.00057515,120]
[321864043,1712573363181,-156.93341435,0.00057605,2]
[321864044,1712573363201,-160.14602343,0.00057636,2]
[321864045,1712573363220,-158.193726,0.00058708,2]
[321864046,1712573363239,-200.00288719,0.00059119,120]
[321864047,1712573363260,-200.00288719,0.00059521,120]
[321864048,1712573363279,-164.66079013,0.000599,115]
[321864049,1712573363297,-56205.24319389,0.0006,120]
[321864050,1712573363318,-160.14602343,0.00060138,2]
[321864051,1712573363337,-156.93341435,0.00060173,2]
[321864052,1712573363355,-200.00288719,0.00060254,120]
[321864053,1712573363375,-500.0,0.0006027,120]
[321864054,1712573363394,-356.22133865,0.0006027,120]
[321864055,1712573363414,-500.0,0.0006027,120]
[321864056,1712573363434,-470.3708533,0.0006027,120]
[321864057,1712573363454,-427.95026949,0.0006027,120]
[321864058,1712573363473,-179.49299627,0.00060271,12]
[321864059,1712573363491,-814.076411,0.00060271,7]
[321864060,1712573363587,-3717.29210644,0.00060271,7]
[321864061,1712573363607,-6854.02678516,0.00060271,7]
[321864062,1712573363627,-339.07603963,0.00060271,7]
[321864063,1712573363647,-202.17296299,0.00060272,7]
[321864064,1712573363669,-15520.95977493,0.00060273,61]
[321864065,1712573363688,-500.0,0.00060273,120]
[321864066,1712573363707,-707.84,0.00060273,120]
[321864067,1712573363726,-500.0,0.00060273,120]
[321864068,1712573363745,-500.0,0.00060273,120]
[321864069,1712573363765,-500.0,0.00060273,120]
[321864070,1712573363784,-500.0,0.00060273,120]
[321864071,1712573363803,-500.0,0.00060273,120]
[321864072,1712573363823,-500.0,0.00060273,120]
[321864073,1712573363842,-500.0,0.00060273,120]
[321864074,1712573363861,-500.0,0.00060273,120]
[321864075,1712573363880,-500.0,0.00060273,120]
[321864076,1712573363899,-500.0,0.00060273,120]
[321864077,1712573363919,-500.0,0.00060273,120]
[321864078,1712573363938,-500.0,0.00060273,120]
[321864079,1712573363956,-500.0,0.00060273,120]
[321864080,1712573363975,-500.0,0.00060273,120]
[321864081,1712573363995,-500.0,0.00060273,7]
[321864082,1712573364014,-500.0,0.00060273,120]
[321864083,1712573364037,-500.0,0.00060273,120]
[321864084,1712573364056,-507.71593614,0.00060273,120]
[321864085,1712573364075,-500.0,0.00060273,120]
[321864086,1712573364095,-500.0,0.00060273,120]
[321864087,1712573364114,-500.0,0.00060273,120]
[321864088,1712573364133,-500.0,0.00060273,120]
[321864089,1712573364152,-403.57235261,0.00060273,120]
[321864090,1712573364176,-500.0,0.00060273,120]
[321864091,1712573364195,-500.0,0.00060273,120]
[321864092,1712573364215,-500.0,0.00060273,120]
[321864093,1712573364235,-503.64099157,0.00060273,120]
[321864094,1712573364255,-507.21569682,0.00060273,120]
[321864095,1712573364283,-500.0,0.00060273,120]
[321864096,1712573364302,-500.0,0.00060273,120]
[321864097,1712573364321,-536.56095693,0.00060273,120]
[321864098,1712573364341,-500.0,0.00060273,120]
[321864099,1712573364360,-530.74470927,0.00060273,120]
[321864100,1712573364380,-587.56953402,0.00060273,120]
[321864101,1712573364399,-500.0,0.00060273,120]
[321864102,1712573364420,-500.61388132,0.00060273,120]
[321864103,1712573364439,-565.51,0.00060273,120]
[321864104,1712573364457,-500.0,0.00060273,120]
[321864105,1712573364477,-500.0,0.00060273,120]
[321864106,1712573364496,-584.243083,0.00060273,120]
[321864107,1712573364515,-539.67,0.00060273,120]
[321864108,1712573364533,-500.0,0.00060273,120]
[321864109,1712573364553,-795.61,0.00060273,120]
[321864110,1712573364572,-500.0,0.00060273,120]
[321864111,1712573364591,-500.0,0.00060273,120]
[321864112,1712573364611,-500.0,0.00060273,120]
[321864113,1712573364629,-500.0,0.00060273,120]
[321864114,1712573364649,-601.34049551,0.00060273,120]
[321864115,1712573364670,-500.0,0.00060273,120]
[321864116,1712573364690,-500.0,0.00060273,120]
[321864117,1712573364710,-502.5901833,0.00060273,120]
[321864118,1712573364731,-500.0,0.00060273,120]
[321864119,1712573364765,-500.0,0.00060273,120]
[321864120,1712573364784,-500.0,0.00060273,120]
[321864121,1712573364804,-500.0,0.00060273,120]
[321864122,1712573364823,-500.0,0.00060273,120]
[321864123,1712573364843,-500.0,0.00060273,120]
[321864124,1712573364862,-500.0,0.00060273,120]
[321864125,1712573364882,-500.0,0.00060273,120]
[321864126,1712573364901,-328.19783909,0.00060273,120]
[321864127,1712573364921,-500.0,0.00060273,120]
[321864128,1712573364941,-500.0,0.00060273,120]
[321864129,1712573364963,-500.0,0.00060273,120]
[321864130,1712573364983,-534.28,0.00060273,120]
[321864131,1712573365003,-500.0,0.00060273,120]
[321864132,1712573365022,-500.0,0.00060273,120]
[321864133,1712573365043,-608.65,0.00060273,120]
[321864134,1712573365062,-561.57823212,0.00060273,120]
[321864135,1712573365081,-500.0,0.00060273,120]
[321864136,1712573365100,-500.0,0.00060273,120]
[321864137,1712573365119,-500.0,0.00060273,120]
[321864138,1712573365145,-500.0,0.00060273,120]
[321864139,1712573365168,-500.0,0.00060273,120]
[321864140,1712573365188,-500.0,0.00060273,120]
[321864141,1712573365208,-500.0,0.00060273,120]
[321864142,1712573365227,-500.0,0.00060273,120]
[321864143,1712573365317,-500.0,0.00060273,120]
[321864144,1712573365337,-500.0,0.00060273,120]
[321864145,1712573365357,-500.0,0.00060273,120]
[321864146,1712573365376,-500.0,0.00060273,120]
[321864147,1712573365397,-500.0,0.00060273,120]
[321864148,1712573365417,-500.0,0.00060273,120]
[321864149,1712573365437,-526.97,0.00060273,120]
[321864150,1712573365459,-500.0,0.00060273,120]
[321864151,1712573365478,-500.0,0.00060273,120]
[321864152,1712573365499,-500.0,0.00060273,120]
[321864153,1712573365525,-500.0,0.00060273,120]
[321864154,1712573365544,-500.0,0.00060273,120]
[321864155,1712573365564,-500.0,0.00060273,120]
[321864156,1712573365583,-500.0,0.00060273,120]
[321864157,1712573365605,-500.0,0.00060273,120]
[321864158,1712573365625,-500.0,0.00060273,120]
[321864159,1712573365645,-500.0,0.00060273,120]
[321864160,1712573365666,-500.0,0.00060273,120]
[321864161,1712573365685,-500.0,0.00060273,120]
[321864162,1712573365704,-500.0,0.00060273,120]
[321864163,1712573365723,-500.0,0.00060273,120]
[321864164,1712573365743,-2443.76,0.00060273,120]
[321864165,1712573365763,-500.0,0.00060273,120]
[321864166,1712573365783,-300.51293791,0.00060273,120]
[321864167,1712573365803,-500.0,0.00060273,120]
[321864168,1712573365823,-500.0,0.00060273,120]
[321864169,1712573365843,-1320.33,0.00060273,120]
[321864170,1712573365863,-500.0,0.00060273,120]
[321864171,1712573365890,-500.0,0.00060273,120]
[321864172,1712573365911,-500.0,0.00060273,120]
[321864173,1712573365932,-500.0,0.00060273,120]
[321864174,1712573365952,-500.0,0.00060273,120]
[321864175,1712573365973,-500.0,0.00060273,120]
[321864176,1712573365992,-500.0,0.00060273,120]
[321864177,1712573366011,-500.0,0.00060273,120]
[321864178,1712573366031,-500.0,0.00060273,120]
[321864179,1712573366051,-700.5,0.00060273,120]
[321864180,1712573366071,-516.28,0.00060273,120]
[321864181,1712573366091,-500.0,0.00060273,120]
[321864182,1712573366109,-500.0,0.00060273,120]
[321864183,1712573366129,-1838.95,0.00060273,120]
[321864184,1712573366148,-500.0,0.00060273,120]
[321864185,1712573366169,-500.0,0.00060273,120]
[321864186,1712573366190,-500.0,0.00060273,120]
[321864187,1712573366209,-1371.4,0.00060273,120]
[321864188,1712573366230,-500.0,0.00060273,120]
[321864189,1712573366251,-500.0,0.00060273,120]
[321864190,1712573366271,-500.0,0.00060273,120]
[321864191,1712573366290,-500.0,0.00060273,120]
[321864192,1712573366310,-500.0,0.00060273,120]
[321864193,1712573366330,-323.42608529,0.00060273,120]
[321864194,1712573366351,-500.0,0.00060273,120]
[321864195,1712573366371,-500.0,0.00060273,120]
[321864196,1712573366391,-500.0,0.00060273,120]
[321864197,1712573366411,-500.0,0.00060273,120]
[321864198,1712573366430,-500.0,0.00060273,120]
[321864199,1712573366449,-372.7191899,0.00060273,120]
[321864200,1712573366469,-500.0,0.00060273,120]
[321864201,1712573366488,-500.0,0.00060273,120]
[321864202,1712573366508,-500.0,0.00060273,120]
[321864203,1712573366527,-1028.85,0.00060273,120]
[321864204,1712573366546,-500.0,0.00060273,120]
[321864205,1712573366566,-774.79,0.00060273,120]
[321864206,1712573366585,-500.0,0.00060273,120]
[321864207,1712573366605,-500.0,0.00060273,120]
[321864208,1712573366623,-671.17,0.00060273,120]
[321864209,1712573366643,-500.0,0.00060273,120]
[321864210,1712573366664,-551.7,0.00060273,120]
[321864211,1712573366683,-500.0,0.00060273,120]
[321864212,1712573366704,-528.68,0.00060273,120]
[321864213,1712573366723,-617.73,0.00060273,120]
[321864214,1712573366744,-955.68,0.00060273,120]
[321864215,1712573366763,-500.0,0.00060273,120]
[321864216,1712573366782,-500.0,0.00060273,120]
[321864217,1712573366803,-2459.41,0.00060273,120]
[321864218,1712573366824,-500.0,0.00060273,120]
[321864219,1712573366845,-2176.68,0.00060273,120]
[321864220,1712573366865,-500.0,0.00060273,120]
[321864221,1712573366884,-500.0,0.00060273,120]
[321864222,1712573366971,-500.0,0.00060273,120]
[321864223,1712573366991,-500.0,0.00060273,120]
[321864224,1712573367011,-761.15,0.00060273,120]
[321864225,1712573367030,-500.0,0.00060273,120]
[321864226,1712573367052,-2223.83,0.00060273,120]
[321864227,1712573367072,-733.64,0.00060273,120]
[321864228,1712573367091,-611.15,0.00060273,120]
[321864229,1712573367111,-500.0,0.00060273,120]
[321864230,1712573367132,-500.0,0.00060273,120]
[321864231,1712573367151,-500.0,0.00060273,120]
[321864232,1712573367173,-500.0,0.00060273,120]
[321864233,1712573367194,-3555.5,0.00060273,90]
[321864234,1712573367214,-736.82,0.00060273,120]
[321864235,1712573367234,-1739.31,0.00060273,120]
[321864236,1712573367255,-433.9341045,0.00060273,120]
[321864268,1712573433212,-336.7234115,0.00058173,4]
[321864269,1712573433223,-166.666666,0.00058453,2]
[321864270,1712573433232,-14621.77866214,0.0006,2]
[321864271,1712573433346,-7275.58209498,0.0006,2]
[321864290,1712573438788,-423.8636,0.0006,2]
[321864292,1712573438800,-15000.0,0.0006,2]
[321864295,1712573439198,-1578.77564288,0.0006,2]
[321864296,1712573439208,-166.666666,0.00060047,2]
[321864297,1712573439218,-569.49633684,0.00060272,120]
[321864298,1712573439227,-655.6158955,0.00060273,120]
[321864299,1712573439237,-500.0,0.00060273,120]
[321864300,1712573439247,-500.0,0.00060273,120]
[321864301,1712573439256,-85.31291553,0.00060273,120]
[321864302,1712573439281,-414.68708447,0.00060273,120]
[321864303,1712573439290,-500.0,0.00060273,21]
[321864304,1712573439299,-500.0,0.00060273,120]
[321864305,1712573439308,-500.0,0.00060273,120]
[321864306,1712573439317,-500.0,0.00060273,120]
[321864307,1712573439326,-1219.48,0.00060273,120]
[321864308,1712573439335,-2348.69,0.00060273,2]
[321864309,1712573439344,-500.0,0.00060273,120]
[321864310,1712573439353,-500.0,0.00060273,120]
[321864311,1712573439363,-500.0,0.00060273,120]
[321864312,1712573439371,-500.0,0.00060273,120]
[321864313,1712573439381,-505.41060832,0.00060273,120]
[321864314,1712573439389,-618.1,0.00060273,120]
[321864315,1712573439398,-500.0,0.00060273,120]
[321864316,1712573439407,-500.0,0.00060273,120]
[321864317,1712573439416,-500.0,0.00060273,120]
[321864318,1712573439425,-500.0,0.00060273,120]
[321864319,1712573439435,-500.0,0.00060273,120]
[321864320,1712573439444,-584.93935614,0.00060273,120]
[321864321,1712573439453,-500.0,0.00060273,120]
[321864322,1712573439462,-411.86160082,0.00060273,120]
[321864323,1712573439471,-500.0,0.00060273,120]
[321864324,1712573439480,-500.0,0.00060273,120]
[321864325,1712573439490,-500.0,0.00060273,120]
[321864326,1712573439499,-500.0,0.00060273,120]
[321864327,1712573439508,-388.45655663,0.00060273,120]
[321864328,1712573439518,-500.0,0.00060273,120]
[321864329,1712573439528,-500.0,0.00060273,120]
[321864330,1712573439536,-500.0,0.00060273,120]
[321864331,1712573439545,-500.0,0.00060273,120]
[321864332,1712573439554,-543.08921016,0.00060273,120]
[321864333,1712573439563,-500.0,0.00060273,120]
[321864334,1712573439572,-500.0,0.00060273,120]
[321864335,1712573439581,-500.0,0.00060273,120]
[321864336,1712573439590,-500.0,0.00060273,120]
[321864337,1712573439599,-834.86,0.00060273,120]
[321864338,1712573439608,-500.0,0.00060273,120]
[321864339,1712573439617,-281.72558346,0.00060273,120]
[321864372,1712573440703,-218.27441654,0.00060273,120]
[321864373,1712573440713,-630.93,0.00060273,120]
[321864374,1712573440722,-290.26928246,0.00060273,120]
[321864411,1712573443862,-209.73071754,0.00060273,120]
[321864412,1712573443871,-500.0,0.00060273,120]
[321864413,1712573443881,-500.0,0.00060273,120]
[321864414,1712573443890,-500.0,0.00060273,120]
[321864415,1712573443898,-500.0,0.00060273,120]
[321864416,1712573443908,-389.43020665,0.00060273,120]
[321864417,1712573443916,-500.0,0.00060273,120]
[321864418,1712573443925,-520.86,0.00060273,60]
[321864419,1712573443934,-500.0,0.00060273,120]
[321864420,1712573443943,-500.0,0.00060273,120]
[321864421,1712573443952,-514.04904968,0.00060273,120]
[321864422,1712573443962,-500.0,0.00060273,120]
[321864423,1712573443971,-500.0,0.00060273,120]
[321864425,1712573443980,-500.0,0.00060273,120]
[321864427,1712573443989,-500.0,0.00060273,120]
[321864428,1712573443997,-500.0,0.00060273,120]
[321864429,1712573444006,-500.0,0.00060273,120]
[321864430,1712573444015,-552.73,0.00060273,120]
[321864431,1712573444024,-500.0,0.00060273,120]
[321864432,1712573444033,-500.0,0.00060273,120]
[321864433,1712573444042,-500.0,0.00060273,120]
[321864434,1712573444051,-500.0,0.00060273,120]
[321864435,1712573444061,-375.68274984,0.00060273,120]
[321864436,1712573444070,-2341.93,0.00060273,120]
[321864437,1712573444079,-700.88,0.00060273,120]
[321864438,1712573444088,-500.0,0.00060273,120]
[321864439,1712573444097,-500.0,0.00060273,120]
[321864440,1712573444107,-500.0,0.00060273,120]
[321864441,1712573444116,-500.0,0.00060273,120]
[321864442,1712573444125,-500.0,0.00060273,120]
[321864443,1712573444134,-500.0,0.00060273,120]
[321864444,1712573444143,-643.2,0.00060273,120]
[321864445,1712573444152,-5388.14727628,0.00060273,120]
[321864574,1712573448062,-238.803033,0.0006008,30]
[321864575,1712573448072,-175.20272372,0.00060273,120]
[321864576,1712573448081,-570.99,0.00060273,120]
[321864577,1712573448090,-500.0,0.00060273,120]
[321864578,1712573448100,-500.0,0.00060273,120]
[321864579,1712573448109,-500.0,0.00060273,120]
[321864580,1712573448118,-500.0,0.00060273,120]
[321864581,1712573448127,-500.0,0.00060273,120]
[321864582,1712573448136,-500.0,0.00060273,120]
[321864583,1712573448144,-985.98,0.00060273,120]
[321864584,1712573448152,-500.0,0.00060273,120]
[321864585,1712573448161,-500.0,0.00060273,120]
[321864586,1712573448170,-2085.99,0.00060273,120]
[321864587,1712573448181,-2842.51,0.00060273,120]
[321864588,1712573448191,-742.5,0.00060273,120]
[321864589,1712573448201,-541.95,0.00060273,120]
[321864590,1712573448210,-500.0,0.00060273,7]
[321864591,1712573448221,-457.8077654,0.00060273,120]
[321864595,1712573451938,161.192838,0.00027397,2]
[321864596,1712573452155,161.192838,0.00041096,2]
[321864597,1712573465130,1110.24099,0.00038055,4]
[321864598,1712573465152,570.12950898,0.00038055,4]
[321864638,1712573915593,-207.18381603,0.00029989,2]
[321864639,1712573915621,-154.87609912,0.0002999,2]
[321864640,1712573915647,-154.87609912,0.00029991,2]
[321864641,1712573915673,-1086.90254792,0.00029991,2]
[321864642,1712573915791,-2935.09161467,0.00029994,2]
[321864643,1712573915818,-784.721,0.00029995,2]
[321864644,1712573915846,-300.0,0.00029999,2]
[321864645,1712573915877,-300.0,0.00029999,2]
[321864646,1712573915903,-7644.35101353,0.0003,10]
[321864647,1712573915932,-568.3482681,0.00033765,2]
[321864648,1712573915959,-1129.1600951,0.00033795,2]
[321864649,1712573915996,-187.487604,0.00036986,120]
[321864650,1712573916024,-154.87609912,0.00039998,4]
[321864651,1712573916052,-190.72501436,0.00039999,4]
[321864652,1712573917088,-7456.4682108,0.0004,2]
[321864653,1712573917678,-14019.89761359,0.0004,15]
[321864654,1712573917707,-204.11808342,0.00044798,2]
[321864655,1712573917734,-299.55749358,0.000449,2]
[321864656,1712573917761,-1043.03115877,0.00044997,4]
[321864657,1712573917788,-304.64775137,0.00045,4]
[321864658,1712573917815,-178.6351312,0.00045458,30]
[321864659,1712573917842,-520.84890105,0.00045805,120]
[321864660,1712573917871,-24890.0,0.00045806,2]
[321864661,1712573917897,-50033.19130424,0.00045989,2]
[321864662,1712573917923,-187.487604,0.00046233,120]
[321864663,1712573917950,-20384.63167192,0.00047,4]
[321864664,1712573917977,-2000.0,0.00049,68]
[321864665,1712573918073,154.87609912,0.00039998,4]
[321864666,1712573933670,-154.87609912,0.00049009,4]
[321864667,1712573933697,-2223.076203,0.0004901,68]
[321864668,1712573933722,-207.19479391,0.00049998,4]
[321864669,1712573933747,-155.1284383,0.00049999,4]
[321864670,1712573933775,-10211.73208264,0.0005,61]
[321864671,1712573933802,-24631.22613151,0.0005,120]
[321864672,1712573933827,-6771.84034734,0.0005,5]
[321864673,1712573934134,990.26340157,0.00049998,4]
[321864674,1712573934425,268.07680906,0.00049998,4]
[321864675,1712573935070,471.95855411,0.00049998,4]
[321864676,1712573936637,4506.8585254,0.00049999,4]
[321864687,1712574337760,-180.98113052,0.00027389,2]
[321864688,1712574337781,-282.23953123,0.0002739,2]
[321864689,1712574337802,-335.85779546,0.00027391,2]
[321864691,1712574385782,-4442.44366013,0.0002701,2]
[321864692,1712574385809,-543.25050812,0.00027388,2]
[321864693,1712574385834,-5564.97168216,0.00027389,2]
[321864694,1712574385942,-5781.60876067,0.0002739,2]
[321864695,1712574385969,-2615.47741153,0.00027394,2]
[321864696,1712574385995,-162.966298,0.00027397,2]
[321864697,1712574386019,-4506.8585254,0.00041485,4]
[321864698,1712574386044,-955.20514546,0.00041486,4]
[321864699,1712574386070,-2990.37261997,0.00041489,4]
[321864700,1712574386095,-720.919598,0.00042163,2]
[321864701,1712574386124,-187.487604,0.0004303,120]
[321864702,1712574386149,-264.57693695,0.00044976,4]
[321864703,1712574386175,-178.6351312,0.00045094,30]
[321864704,1712574386200,-178.6351312,0.00045595,30]
[321864705,1712574386225,-163.0,0.00047,90]
[321864706,1712574386250,-163.0,0.00048904,90]
[321864707,1712574386274,-1756.34196584,0.00049,7]
[321864708,1712574386300,-150.0,0.00049,68]
[321864709,1712574386327,-281.91627017,0.00049589,4]
[321864710,1712574386352,-180.78171506,0.00049589,4]
[321864711,1712574386376,-588.31844796,0.0004959,4]
[321864712,1712574386402,-24890.0,0.00049591,2]
[321864713,1712574386430,-150.8642222,0.00049724,2]
[321864714,1712574386455,-155.93711446,0.00049999,2]
[321864715,1712574386483,-155.16485982,0.00049999,2]
[321864716,1712574386507,-155.24608222,0.00049999,4]
[321864717,1712574389465,154.87609912,0.00027391,2]
[321864725,1712574547114,-154.87609912,0.00027391,2]
[321864732,1712574579233,563.3089218,0.00041374,4]
[321864733,1712574597631,162.966298,0.00027397,2]
[321864751,1712574631892,-266.2096192,0.00041375,2]
[321864752,1712574631901,-266.71144311,0.00041375,2]
[321864753,1712574631910,-1441.02765595,0.000479,2]
[321864754,1712574631945,-618.7719728,0.000479,2]
[321864755,1712574631953,-165.59015424,0.00051019,2]
[321864756,1712574631962,-200.00288727,0.00052107,60]
[321864757,1712574631971,-165.59015419,0.00052219,2]
[321864758,1712574631980,-2059.79962875,0.000529,2]
[321864759,1712574631989,-155.0381559,0.000529,2]
[321864760,1712574631997,-165.59015419,0.00053419,2]
[321864761,1712574632007,-165.59015419,0.00054618,2]
[321864762,1712574632016,-161.192838,0.00054795,2]